{"text_format":"3","workbook":"xlsx","n_sheets":3,"sheets":["一览表","Sheet1","Sheet2"],"not_rendered":{"defined_names":4},"read":"whole","date_system":"1900"}

{"sheet":"一览表","index":0,"n_rows":51,"n_cols":11,"rows_kept":51,"merged":[[0,0,0,10],[1,0,2,0],[1,1,2,1],[1,2,2,2],[1,3,2,3],[1,4,2,4],[1,5,1,10],[3,3,12,3],[13,3,23,3],[24,3,50,3]]}
["宁夏回族自治区人民医院高层次人才引进岗位计划一览表"]
["序号","岗位编号","招聘岗位","人才引进类型","招聘人数"," 应聘人员所需资格和条件"]
[{"$nulls":5},"招聘范围","年龄","学历","学位","所学专业","与岗位相关的其他要求"]
[1,1001,"泌尿外科","领军人才           （学科带头人）",1,"全国","50以下","研究生","硕士或博士","外科学、临床医学","符合“领军人才” 人才引进条件"]
[2,1002,"心脏大血管外科",null,1,"全国","50以下","研究生","硕士或博士","外科学、临床医学","胸心外科学方向，符合“领军人才” 人才引进条件"]
[3,1003,"神经外科",null,1,"全国","50以下","研究生","硕士或博士","外科学、临床医学","符合“领军人才” 人才引进条件"]
[4,1004,"内分泌科",null,1,"全国","50以下","研究生","硕士或博士","内科学、临床医学","符合“领军人才” 人才引进条件"]
[5,1005,"呼吸内科",null,1,"全国","50以下","研究生","硕士或博士","内科学、临床医学","符合“领军人才” 人才引进条件"]
[6,1006,"中医科",null,1,"全国","50以下","研究生","硕士或博士","中医学","符合“领军人才” 人才引进条件"]
[7,1007,"口腔科",null,1,"全国","50以下","研究生","硕士或博士","口腔临床医学","颌面外科学方向，符合“领军人才” 人才引进条件"]
[8,1008,"肿瘤科",null,1,"全国","50以下","研究生","硕士或博士","肿瘤学、临床医学","符合“领军人才” 人才引进条件"]
[9,1009,"烧伤整形",null,1,"全国","50以下","研究生","硕士或博士","外科学、临床医学","符合“领军人才” 人才引进条件"]
[10,1010,"药学部",null,1,"全国","50岁以下","研究生","硕士或博士","药学类","符合“领军人才” 人才引进条件"]
[11,1011,"妇产科","杰出人才               （亚学科带头人）",1,"全国","45岁以下","研究生","硕士或博士","妇产科学、临床医学","符合“杰出人才” 人才引进条件"]
[12,1012,"儿科",null,1,"全国","45岁以下","研究生","硕士或博士","儿科学、临床医学","符合“杰出人才” 人才引进条件"]
[13,1013,"眼科",null,1,"全国","45岁以下","研究生","硕士或博士","眼科学、临床医学","角膜和眼角疾病方向，符合“杰出人才” 人才引进条件"]
[14,1014,"ICU",null,1,"全国","45岁以下","研究生","硕士或博士","内科学、临床医学","重症医学方向，符合“杰出人才” 人才引进条件"]
[15,1015,"急诊科",null,1,"全国","45岁以下","研究生","硕士或博士","急诊医学、临床医学","符合“杰出人才” 人才引进条件"]
[16,1016,"耳鼻喉科",null,1,"全国","45岁以下","研究生","硕士或博士","耳鼻咽喉科学、临床医学","符合“杰出人才” 人才引进条件"]
[17,1017,"感染科",null,1,"全国","45岁以下","研究生","硕士或博士","内科学、临床医学","符合“杰出人才” 人才引进条件"]
[18,1018,"皮肤科",null,1,"全国","45岁以下","研究生","硕士或博士","皮肤病与性病学、临床医学","符合“杰出人才” 人才引进条件"]
[19,1019,"医疗美容科",null,1,"全国","45岁以下","研究生","硕士或博士","外科学、临床医学","符合“杰出人才” 人才引进条件"]
[20,1020,"医学影像中心",null,1,"全国","45岁以下","研究生","硕士或博士","影像医学与核医学","符合“杰出人才” 人才引进条件"]
[21,1021,"病理科",null,1,"全国","45岁以下","研究生","硕士或博士","病理学与病理生理学","符合“杰出人才” 人才引进条件"]
[22,1022,"妇产科","优秀博士",1,"全国","40岁以下","研究生","博士","妇产科学、临床医学","取得执业医师资格证，执业范围与应聘岗位相符，第一学历为全日制本科"]
[23,1023,"儿科",null,2,"全国","40岁以下","研究生","博士","儿科学、临床医学","取得执业医师资格证，执业范围与应聘岗位相符，第一学历为全日制本科"]
[24,1024,"急诊科",null,2,"全国","40岁以下","研究生","博士","急诊医学、内科学、临床医学","取得执业医师资格证，执业范围与应聘岗位相符，第一学历为全日制本科"]
[25,1025,"ICU",null,2,"全国","40岁以下","研究生","博士","内科学、临床医学","取得执业医师资格证，执业范围与应聘岗位相符，第一学历为全日制本科"]
[26,1026,"皮肤科",null,2,"全国","40岁以下","研究生","博士","皮肤病与性病学、临床医学","取得执业医师资格证，执业范围与应聘岗位相符，第一学历为全日制本科"]
[27,1027,"心脏大血管外科",null,2,"全国","40岁以下","研究生","博士","外科学、临床医学","取得执业医师资格证，执业范围与应聘岗位相符，第一学历为全日制本科"]
[28,1028,"神经外科",null,1,"全国","40岁以下","研究生","博士","外科学、临床医学","取得执业医师资格证，执业范围与应聘岗位相符，第一学历为全日制本科"]
[29,1029,"内分泌科",null,2,"全国","40岁以下","研究生","博士","内科学、临床医学","取得执业医师资格证，执业范围与应聘岗位相符，第一学历为全日制本科"]
[30,1030,"血液内科",null,1,"全国","40岁以下","研究生","博士","内科学、临床医学","取得执业医师资格证，执业范围与应聘岗位相符，第一学历为全日制本科"]
[31,1031,"中医科",null,2,"全国","40岁以下","研究生","博士","中医学","取得执业医师资格证，执业范围与应聘岗位相符，第一学历为全日制本科"]
[32,1032,"泌尿外科",null,2,"全国","40岁以下","研究生","博士","外科学、临床医学","取得执业医师资格证，执业范围与应聘岗位相符，第一学历为全日制本科"]
[33,1033,"耳鼻喉科",null,2,"全国","40岁以下","研究生","博士","耳鼻咽喉科学、临床医学","取得执业医师资格证，执业范围与应聘岗位相符，第一学历为全日制本科"]
[34,1034,"甲状腺乳腺科",null,1,"全国","40岁以下","研究生","博士","外科学、临床医学","取得执业医师资格证，执业范围与应聘岗位相符，第一学历为全日制本科"]
[35,1035,"胃肠外科",null,2,"全国","40岁以下","研究生","博士","外科学、临床医学","取得执业医师资格证，执业范围与应聘岗位相符，第一学历为全日制本科"]
[36,1036,"烧伤科",null,1,"全国","40岁以下","研究生","博士","外科学、临床医学","取得执业医师资格证，执业范围与应聘岗位相符，第一学历为全日制本科"]
[37,1037,"肿瘤科",null,1,"全国","40岁以下","研究生","博士","物理学类、生物医学工程类、核科学与技术类、肿瘤学、外科学","取得相关资格证，执业范围与应聘岗位相符，第一学历为全日制本科"]
[38,1038,"介入与血管外科",null,1,"全国","40岁以下","研究生","博士","影像医学与核医学、外科学","取得执业医师资格证，执业范围与应聘岗位相符，第一学历为全日制本科"]
[39,1039,"医疗美容科",null,1,"全国","40岁以下","研究生","博士","外科学、临床医学","取得执业医师资格证，执业范围与应聘岗位相符，第一学历为全日制本科"]
[40,1040,"口腔科",null,1,"全国","40岁以下","研究生","博士","口腔临床医学、临床医学","取得执业医师资格证，执业范围与应聘岗位相符，第一学历为全日制本科"]
[41,1041,"核医学科",null,1,"全国","40岁以下","研究生","博士","影像医学与核医学、物理学","取得执业医师资格证，执业范围与应聘岗位相符，第一学历为全日制本科"]
[42,1042,"激光中心",null,1,"全国","40岁以下","研究生","博士","皮肤病与性病学、整形美容等相关专业","取得相关医师资格证，执业范围与应聘岗位相符，第一学历为全日制本科"]
[43,1043,"高压氧",null,1,"全国","40岁以下","研究生","博士","临床医学相关专业","取得执业医师资格证，执业范围与应聘岗位相符，第一学历为全日制本科"]
[44,1044,"医学影像中心",null,2,"全国","40岁以下","研究生","博士","影像医学与核医学","取得相关资格证，执业范围与应聘岗位相符，第一学历为全日制本科"]
[45,1045,"功能科",null,2,"全国","40岁以下","研究生","博士","影像医学与核医学","取得相关资格证，执业范围与应聘岗位相符，第一学历为全日制本科"]
[46,1046,"中心实验室",null,1,"全国","40岁以下","研究生","博士","分子生物学、医学相关专业","取得相关资格证，执业范围与应聘岗位相符，第一学历为全日制本科"]
[47,1047,"健康管理中心",null,1,"全国","40岁以下","研究生","博士","内科学、临床医学","取得执业医师资格证，执业范围为内科或外科，第一学历为全日制本科"]
[48,1048,"病案室",null,1,"全国","40岁以下","研究生","博士","流行病与卫生统计学","取得相关资格证，第一学历为全日制本科"]

{"sheet":"Sheet1","index":1,"n_rows":25,"n_cols":16,"rows_kept":25}
[null,"博士","人数"]
[null,"骨科",0,null,{"$f":"VLOOKUP(B2,K:K,1,0)","v":{"$error":"#N/A"}},"儿科",{"$nulls":4},"儿科",0,null,null,"肝胆外科",1]
[null,"儿科",0,null,{"$f":"VLOOKUP(B3,K:K,1,0)","v":"儿科"},"急诊科",{"$nulls":4},"急诊科",0,null,null,"神经外科",1]
[null,"急诊科",0,null,"急诊科","ICU",{"$nulls":4},"ICU",0,null,null,"中医科",1]
[null,"ICU",0,null,"ICU","心脏大血管外科",{"$nulls":4},"普胸外科",0,null,null,"甲状腺乳腺科",1]
[null,"普胸外科",0,null,"普胸外科","内分泌科",{"$nulls":4},"胃肠外科",0,null,null,"介入与血管外科",1]
[null,"胃肠外科",0,null,"胃肠外科","血液内科",{"$nulls":4},"心脏大血管外科",0,null,null,"口腔科",1]
[null,"普外科",0,null,{"$error":"#N/A"},"泌尿外科",{"$nulls":4},"内分泌科",0,null,null,"肿瘤科",1]
[null,"心脏大血管外科",0,null,"心脏大血管外科","耳鼻喉科",{"$nulls":4},"血液内科",0,null,null,"宁养院",1]
[null,"内分泌科",0,null,"内分泌科","胃肠外科",{"$nulls":4},"泌尿外科",0,null,null,"病案室",1]
[null,"血液内科",0,null,"血液内科","医疗美容科",{"$nulls":4},"耳鼻喉科",0,null,null,"信息中心",1]
[null,"泌尿外科",0,null,"泌尿外科","核医学科",{"$nulls":4},"皮肤科",0]
[null,"耳鼻喉科",0,null,"耳鼻喉科","高压氧",{"$nulls":4},"烧伤整形科",0]
[null,"口腔科",0,null,{"$error":"#N/A"},"医学影像科",{"$nulls":4},"医疗美容科",0]
[null,"皮肤科",0,null,"皮肤科","功能科",{"$nulls":4},"内镜中心",0]
[null,"烧伤整形科",0,null,"烧伤整形科",{"$nulls":5},"激光中心",0]
[null,"医疗美容科",0,null,"医疗美容科",{"$nulls":5},"核医学科",0]
[null,"内镜中心",0,null,"内镜中心",{"$nulls":5},"高压氧",0]
[null,"激光中心",0,null,"激光中心",{"$nulls":5},"医学影像科",0]
[null,"核医学科",0,null,"核医学科",{"$nulls":5},"健康管理中心",0]
[null,"高压氧",0,null,"高压氧",{"$nulls":5},"功能科",0]
[null,"医学影像科",0,null,"医学影像科",{"$nulls":5},"药学部",0]
[null,"健康管理中心",0,null,"健康管理中心"]
[null,"功能科",0,null,"功能科"]
[null,"药学部",0,null,"药学部"]

{"sheet":"Sheet2","index":2,"n_rows":33,"n_cols":14,"rows_kept":33,"merged":[[1,1,23,1],[1,2,23,2]]}
[]
["妇产科","第三层次","优秀博士",1,{"$f":"VLOOKUP(A2,J:M,4,0)","v":{"$error":"#N/A"}},{"$nulls":4},"科室","博士","博士在读","博士合计"]
["儿科",null,null,2,{"$f":"VLOOKUP(A3,J:M,4,0)","v":0},{"$nulls":4},"儿科",0,0,0,{"$f":"VLOOKUP(J3,A:D,4,0)","v":2}]
["急诊科",null,null,2,{"$f":"VLOOKUP(A4,J:M,4,0)","v":0},{"$nulls":4},"急诊科",0,0,0,{"$f":"VLOOKUP(J4,A:D,4,0)","v":2}]
["ICU",null,null,2,{"$f":"VLOOKUP(A5,J:M,4,0)","v":0},{"$nulls":4},"ICU",0,0,0,{"$f":"VLOOKUP(J5,A:D,4,0)","v":2}]
["皮肤科",null,null,2,{"$nulls":5},"普胸外科",0,0,0,{"$f":"VLOOKUP(J6,A:D,4,0)","v":{"$error":"#N/A"}}]
["心脏大血管外科",null,null,2,{"$f":"VLOOKUP(A7,J:M,4,0)","v":0},{"$nulls":4},"肝胆外科",1,0,1,{"$error":"#N/A"}]
["神经外科",null,null,1,1,{"$nulls":4},"胃肠外科",0,0,0,2]
["内分泌科",null,null,2,0,{"$nulls":4},"心脏大血管外科",0,0,0,2]
["血液内科",null,null,2,0,{"$nulls":4},"神经外科",1,0,1,1]
["中医科",null,null,2,1,{"$nulls":4},"内分泌科",0,0,0,2]
["泌尿外科",null,null,2,0,{"$nulls":4},"血液内科",0,0,0,2]
["耳鼻喉科",null,null,2,0,{"$nulls":4},"中医科",1,0,1,2]
["甲状腺乳腺科",null,null,1,1,{"$nulls":4},"甲状腺乳腺科",1,0,1,1]
["胃肠外科",null,null,2,0,{"$nulls":4},"泌尿外科",0,0,0,2]
["烧伤整形科",null,null,2,0,{"$nulls":4},"介入与血管外科",1,0,1,1]
["肿瘤科",null,null,1,1,{"$nulls":4},"耳鼻喉科",0,0,0,2]
["介入与血管外科",null,null,1,1,{"$nulls":4},"口腔科",0,1,1,{"$f":"VLOOKUP(J18,A:D,4,0)","v":{"$error":"#N/A"}}]
["医疗美容科",null,null,2,0,{"$nulls":4},"皮肤科",0,0,0,2]
["核医学科",null,null,2,0,{"$nulls":4},"肿瘤科",1,0,1,1]
["高压氧",null,null,1,0,{"$nulls":4},"烧伤整形科",0,0,0,2]
["医学影像科",null,null,2,0,{"$nulls":4},"医疗美容科",0,0,0,2]
["功能科",null,null,2,0,{"$nulls":4},"内镜中心",0,0,0,{"$error":"#N/A"}]
["中心实验室",null,null,2,{"$error":"#N/A"},{"$nulls":4},"宁养院",1,0,1,{"$error":"#N/A"}]
[{"$nulls":9},"激光中心",0,0,0,{"$error":"#N/A"}]
[{"$nulls":9},"核医学科",0,0,0,2]
[{"$nulls":9},"高压氧",0,0,0,1]
[{"$nulls":9},"医学影像科",0,0,0,2]
[{"$nulls":9},"健康管理中心",0,0,0,{"$error":"#N/A"}]
[{"$nulls":9},"功能科",0,0,0,2]
[{"$nulls":9},"病案室",1,0,1,{"$error":"#N/A"}]
[{"$nulls":9},"信息中心",1,0,1,{"$error":"#N/A"}]
[{"$nulls":9},"药学部",0,0,0,{"$error":"#N/A"}]